fUST/lending_fUST_20240929
["ID","MTS","AMOUNT","RATE_DAILY","PERIOD"]
[339422141,1727603562803,-805.3,0.00020821,2]
[339422142,1727603562813,-595.05311933,0.00020821,2]
[339422143,1727603562824,-500.0,0.00020821,2]
[339422144,1727603562834,-1406.25,0.00020821,2]
[339422145,1727603562845,-500.0,0.00020821,2]
[339422146,1727603562856,-500.0,0.00020821,2]
[339422147,1727603562869,-500.0,0.00020821,2]
[339422148,1727603562881,-500.0,0.00020821,2]
[339422149,1727603562893,-500.0,0.00020821,2]
[339422150,1727603562904,-500.0,0.00020821,2]
[339422151,1727603562915,-500.0,0.00020821,2]
[339422152,1727603562926,-500.0,0.00020821,2]
[339422153,1727603562940,-666.93,0.00020821,2]
[339422154,1727603562951,-500.0,0.00020821,2]
[339422155,1727603562962,-641.80789446,0.00020821,2]
[339422156,1727603562973,-500.0,0.00020821,2]
[339422157,1727603562984,-500.0,0.00020821,2]
[339422158,1727603562995,-500.0,0.00020821,2]
[339422159,1727603563005,-250.0,0.00020821,2]
[339422160,1727603563014,-500.0,0.00020821,2]
[339422161,1727603563023,-500.0,0.00020821,2]
[339422162,1727603563033,-500.0,0.00020821,2]
[339422163,1727603563042,-500.0,0.00020821,2]
[339422164,1727603563054,-733.04,0.00020821,2]
[339422165,1727603563065,-500.0,0.00020821,2]
[339422166,1727603563076,-500.0,0.00020821,2]
[339422167,1727603563086,-1093.72,0.00020821,2]
[339422168,1727603563097,-500.0,0.00020821,2]
[339422169,1727603563108,-651.51,0.00020821,2]
[339422170,1727603563119,-500.0,0.00020821,2]
[339422171,1727603563131,-500.0,0.00020821,2]
[339422172,1727603563141,-578.1,0.00020821,2]
[339422173,1727603563152,-500.0,0.00020821,2]
[339422174,1727603563162,-500.0,0.00020821,2]
[339422175,1727603563173,-500.0,0.00020821,2]
[339422176,1727603563185,-500.0,0.00020821,2]
[339422177,1727603563195,-500.0,0.00020821,2]
[339422178,1727603563205,-563.42,0.00020821,2]
[339422179,1727603563215,-279.16626494,0.00020821,2]
[339422180,1727603563224,-500.0,0.00020821,2]
[339422181,1727603563234,-500.0,0.00020821,2]
[339422182,1727603563245,-500.0,0.00020821,2]
[339422183,1727603563257,-500.0,0.00020821,2]
[339422184,1727603563267,-500.0,0.00020821,2]
[339422185,1727603563277,-523.16,0.00020821,2]
[339422186,1727603563289,-500.0,0.00020821,2]
[339422187,1727603563300,-500.0,0.00020821,2]
[339422188,1727603563312,-500.0,0.00020821,2]
[339422189,1727603563324,-500.0,0.00020821,2]
[339422190,1727603563335,-500.0,0.00020821,2]
[339422191,1727603563346,-500.0,0.00020821,2]
[339422192,1727603563358,-270.3970065,0.00020821,2]
[339422193,1727603563369,-635.47,0.00020821,2]
[339422194,1727603563380,-500.0,0.00020821,2]
[339422195,1727603563391,-500.0,0.00020821,2]
[339422196,1727603563403,-500.0,0.00020821,2]
[339422197,1727603563414,-836.64,0.00020821,2]
[339422198,1727603563425,-629.28,0.00020821,2]
[339422199,1727603563434,-500.0,0.00020821,2]
[339422200,1727603563445,-287.6,0.00020821,2]
[339422201,1727603563457,-500.0,0.00020821,2]
[339422202,1727603563467,-500.0,0.00020821,2]
[339422203,1727603563478,-500.0,0.00020821,2]
[339422204,1727603563489,-500.0,0.00020821,2]
[339422205,1727603563500,-500.0,0.00020821,2]
[339422206,1727603563512,-500.0,0.00020821,2]
[339422207,1727603563523,-260.30031122,0.00020821,2]
[339422208,1727603563536,-500.0,0.00020821,2]
[339422209,1727603563546,-506.65,0.00020821,2]
[339422210,1727603563558,-687.06,0.00020821,2]
[339422211,1727603563569,-500.0,0.00020821,2]
[339422212,1727603563580,-685.14,0.00020821,2]
[339422213,1727603563591,-271.96032506,0.00020821,2]
[339422214,1727603563602,-500.0,0.00020821,2]
[339422215,1727603563613,-1003.48,0.00020821,2]
[339422216,1727603563623,-500.0,0.00020821,2]
[339422217,1727603563632,-500.0,0.00020821,2]
[339422218,1727603563643,-956.49,0.00020821,2]
[339422219,1727603563652,-500.0,0.00020821,2]
[339422220,1727603563662,-500.0,0.00020821,2]
[339422221,1727603563671,-672.19,0.00020821,2]
[339422222,1727603563680,-500.0,0.00020821,2]
[339422223,1727603563690,-500.0,0.00020821,2]
[339422224,1727603563699,-692.51,0.00020821,2]
[339422225,1727603563709,-500.0,0.00020821,2]
[339422226,1727603563718,-500.0,0.00020821,2]
[339422227,1727603563728,-500.0,0.00020821,2]
[339422228,1727603563737,-500.0,0.00020821,2]
[339422229,1727603563747,-245.40356649,0.00020821,2]
[339422230,1727603563757,-1860.39,0.00020821,2]
[339422231,1727603563766,-757.46,0.00020821,2]
[339422232,1727603563776,-676.06,0.00020821,2]
[339422233,1727603563786,-500.0,0.00020821,2]
[339422234,1727603563799,-642.0792237,0.00020821,2]
[339422235,1727603563809,-500.0,0.00020821,2]
[339422236,1727603563819,-500.0,0.00020821,2]
[339422237,1727603563831,-990.62,0.00020821,2]
[339422238,1727603563843,-500.0,0.00020821,2]
[339422239,1727603563855,-500.0,0.00020821,2]
[339422240,1727603563867,-500.0,0.00020821,2]
[339422241,1727603563877,-595.36,0.00020821,2]
[339422242,1727603563888,-304.43583478,0.00020821,2]
[339422243,1727603563900,-500.0,0.00020821,2]
[339422244,1727603563910,-500.0,0.00020821,2]
[339422245,1727603563921,-500.0,0.00020821,2]
[339422246,1727603563931,-865.69,0.00020821,2]
[339422247,1727603563943,-500.0,0.00020821,2]
[339422248,1727603563955,-500.0,0.00020821,2]
[339422249,1727603563968,-500.0,0.00020821,2]
[339422250,1727603563980,-677.83,0.00020821,2]
[339422251,1727603563991,-500.0,0.00020821,2]
[339422252,1727603564003,-616.29,0.00020821,2]
[339422253,1727603564018,-500.0,0.00020821,2]
[339422254,1727603564029,-500.0,0.00020821,2]
[339422255,1727603564039,-500.0,0.00020821,2]
[339422256,1727603564051,-500.0,0.00020821,2]
[339422257,1727603564062,-707.0,0.00020821,2]
[339422258,1727603564075,-578.16,0.00020821,2]
[339422259,1727603564085,-1727.88,0.00020821,2]
[339422260,1727603564096,-500.0,0.00020821,2]
[339422261,1727603564107,-500.0,0.00020821,2]
[339422262,1727603564119,-500.0,0.00020821,2]
[339422263,1727603564131,-500.0,0.00020821,2]
[339422264,1727603564141,-1110.92,0.00020821,2]
[339422265,1727603564151,-594.03,0.00020821,2]
[339422266,1727603564162,-590.19,0.00020821,2]
[339422267,1727603564173,-500.0,0.00020821,2]
[339422268,1727603564185,-500.0,0.00020821,2]
[339422269,1727603564198,-500.0,0.00020821,2]
[339422270,1727603564209,-500.0,0.00020821,2]
[339422271,1727603564221,-500.0,0.00020821,2]
[339422272,1727603564232,-500.0,0.00020821,2]
[339422273,1727603564243,-830.63,0.00020821,2]
[339422274,1727603564255,-500.0,0.00020821,2]
[339422275,1727603564266,-509.16599393,0.00020821,2]
[339422276,1727603564278,-506.3,0.00020821,2]
[339422277,1727603564290,-594.43,0.00020821,2]
[339422278,1727603564301,-828.86,0.00020821,2]
[339422279,1727603564314,-2841.86,0.00020821,2]
[339422280,1727603564327,-500.0,0.00020821,2]
[339422281,1727603564338,-528.25,0.00020821,2]
[339422282,1727603564350,-1889.69,0.00020821,2]
[339422283,1727603564362,-500.0,0.00020821,2]
[339422284,1727603564373,-1014.76,0.00020821,2]
[339422285,1727603564383,-338.99299712,0.00020821,2]
[339422286,1727603564393,-500.0,0.00020821,2]
[339422287,1727603564402,-500.0,0.00020821,2]
[339422288,1727603564412,-500.0,0.00020821,2]
[339422289,1727603564421,-500.0,0.00020821,2]
[339422290,1727603564433,-890.12,0.00020821,2]
[339422291,1727603564443,-500.0,0.00020821,2]
[339422292,1727603564453,-500.0,0.00020821,2]
[339422293,1727603564465,-500.0,0.00020821,2]
[339422294,1727603564475,-500.0,0.00020821,2]
[339422295,1727603564486,-500.0,0.00020821,2]
[339422296,1727603564497,-519.35806662,0.00020821,2]
[339422297,1727603564508,-500.0,0.00020821,2]
[339422298,1727603564520,-500.0,0.00020821,2]
[339422299,1727603564531,-779.79,0.00020821,2]
[339422300,1727603564541,-603.33,0.00020821,2]
[339422301,1727603564553,-333.78416746,0.00020821,2]
[339422302,1727603564564,-500.0,0.00020821,2]
[339422303,1727603564576,-569.86,0.00020821,2]
[339422304,1727603564588,-500.0,0.00020821,2]
[339422305,1727603564601,-500.0,0.00020821,2]
[339422306,1727603564612,-500.0,0.00020821,2]
[339422307,1727603564623,-663.18,0.00020821,2]
[339422308,1727603564634,-500.0,0.00020821,2]
[339422309,1727603564646,-500.0,0.00020821,2]
[339422310,1727603564658,-514.28840891,0.00020821,2]
[339422311,1727603564670,-500.0,0.00020821,2]
[339422312,1727603564681,-500.0,0.00020821,2]
[339422313,1727603564692,-500.0,0.00020821,2]
[339422314,1727603564703,-500.0,0.00020821,2]
[339422315,1727603564714,-500.0,0.00020821,2]
[339422316,1727603564725,-728.26,0.00020821,2]
[339422317,1727603564735,-500.0,0.00020821,2]
[339422318,1727603564747,-500.0,0.00020821,2]
[339422319,1727603564758,-347.0663591,0.00020821,2]
[339422320,1727603564768,-1894.2,0.00020821,2]
[339422321,1727603564777,-551.28,0.00020821,2]
[339422322,1727603564787,-500.0,0.00020821,2]
[339422323,1727603564800,-500.0,0.00020821,2]
[339422324,1727603564810,-840.49,0.00020821,2]
[339422325,1727603564822,-500.0,0.00020821,2]
[339422326,1727603564833,-817.32,0.00020821,2]
[339422327,1727603564845,-518.88,0.00020821,2]
[339422328,1727603564858,-508.67118202,0.00020821,2]
[339422329,1727603564869,-500.0,0.00020821,2]
[339422330,1727603564881,-544.1,0.00020821,2]
[339422331,1727603564891,-500.0,0.00020821,2]
[339422332,1727603564902,-1517.15,0.00020821,2]
[339422333,1727603564913,-1770.33,0.00020821,2]
[339422334,1727603564922,-500.0,0.00020821,2]
[339422335,1727603564933,-563.27,0.00020821,2]
[339422336,1727603564944,-500.0,0.00020821,2]
[339422337,1727603564956,-500.0,0.00020821,2]
[339422338,1727603564967,-658.78,0.00020821,2]
[339422339,1727603564977,-793.0,0.00020821,2]
[339422340,1727603564987,-500.0,0.00020821,2]
[339422341,1727603564996,-816.02,0.00020821,2]
[339422342,1727603565006,-500.0,0.00020821,2]
[339422343,1727603565018,-500.0,0.00020821,2]
[339422344,1727603565028,-500.0,0.00020821,2]
[339422345,1727603565038,-261.20300341,0.00020821,2]
[339422346,1727603565048,-500.0,0.00020821,2]
[339422347,1727603565058,-500.0,0.00020821,2]
[339422348,1727603565068,-500.0,0.00020821,2]
[339422349,1727603565078,-500.0,0.00020821,2]
[339422350,1727603565088,-522.78,0.00020821,2]
[339422351,1727603565098,-673.9,0.00020821,2]
[339422352,1727603565108,-582.94,0.00020821,2]
[339422353,1727603565118,-1269.53,0.00020821,2]
[339422354,1727603565128,-500.0,0.00020821,2]
[339422355,1727603565138,-983.6,0.00020821,2]
[339422356,1727603565148,-500.0,0.00020821,2]
[339422357,1727603565158,-500.0,0.00020821,2]
[339422358,1727603565168,-500.0,0.00020821,2]
[339422359,1727603565178,-634.9,0.00020821,2]
[339422360,1727603565189,-884.39,0.00020821,2]
[339422361,1727603565199,-500.0,0.00020821,2]
[339422362,1727603565211,-587.30511289,0.00020821,2]
[339422363,1727603565223,-500.0,0.00020821,2]
[339422364,1727603565235,-500.0,0.00020821,2]
[339422365,1727603565245,-541.91,0.00020821,2]
[339422366,1727603565257,-203.90732035,0.00020821,2]
[339422367,1727603565270,-500.0,0.00020821,2]
[339422368,1727603565280,-537.32,0.00020821,2]
[339422369,1727603565291,-500.0,0.00020821,2]
[339422370,1727603565303,-521.86,0.00020821,2]
[339422371,1727603565315,-515.37,0.00020821,2]
[339422372,1727603565325,-592.0528591,0.00020821,2]
[339422373,1727603565336,-500.0,0.00020821,2]
[339422374,1727603565346,-595.6,0.00020821,2]
[339422375,1727603565356,-570.19,0.00020821,2]
[339422376,1727603565366,-582.28,0.00020821,2]
[339422377,1727603565376,-500.0,0.00020821,2]
[339422378,1727603565386,-514.45,0.00020821,2]
[339422379,1727603565396,-1036.21,0.00020821,2]
[339422380,1727603565408,-1058.66,0.00020821,2]
[339422381,1727603565418,-557.02,0.00020821,2]
[339422382,1727603565428,-1629.84,0.00020821,2]
[339422383,1727603565439,-200.0,0.00020821,2]
[339422384,1727603565449,-619.24,0.00020821,2]
[339422385,1727603565459,-1619.76,0.00020821,2]
[339422386,1727603565470,-717.59,0.00020821,2]
[339422387,1727603565481,-500.0,0.00020821,2]
[339422388,1727603565491,-500.0,0.00020821,2]
[339422389,1727603565502,-500.0,0.00020821,2]
[339422390,1727603565512,-19498.11,0.00020821,2]
[339422391,1727603565523,-500.0,0.00020821,2]
[339422392,1727603565533,-500.0,0.00020821,2]
[339422393,1727603565543,-500.0,0.00020821,2]
[339422394,1727603565554,-500.0,0.00020821,2]
[339422395,1727603565565,-509.55,0.00020821,2]
[339422396,1727603565575,-500.0,0.00020821,2]
[339422397,1727603565586,-2421.16,0.00020821,2]
[339422398,1727603565596,-2940.12,0.00020821,2]
[339422399,1727603565606,-500.0,0.00020821,2]
[339422400,1727603565616,-500.0,0.00020821,2]
[339422401,1727603565626,-187.16713341,0.00020821,2]
[339422402,1727603565637,-500.0,0.00020821,2]
[339422403,1727603565647,-1283.44,0.00020821,2]
[339422404,1727603565658,-500.0,0.00020821,2]
[339422405,1727603565866,-500.0,0.00020821,2]
[339422406,1727603565890,-500.0,0.00020821,2]
[339422407,1727603565902,-500.0,0.00020821,2]
[339422408,1727603565914,-950.67,0.00020821,2]
[339422409,1727603565925,-1372.58,0.00020821,2]
[339422410,1727603565937,-687.65,0.00020821,2]
[339422411,1727603565947,-500.0,0.00020821,2]
[339422412,1727603565958,-500.0,0.00020821,2]
[339422413,1727603565969,-907.2,0.00020821,2]
[339422414,1727603565983,-500.0,0.00020821,2]
[339422415,1727603565995,-1445.57,0.00020821,2]
[339422416,1727603566005,-215.40468231,0.00020821,2]
[339422417,1727603566016,-500.0,0.00020821,2]
[339422418,1727603566027,-542.45,0.00020821,2]
[339422419,1727603566037,-500.0,0.00020821,2]
[339422420,1727603566047,-500.0,0.00020821,2]
[339422421,1727603566059,-251.82474194,0.00020821,2]
[339422422,1727603566071,-500.0,0.00020821,2]
[339422423,1727603566083,-500.0,0.00020821,2]
[339422424,1727603566096,-500.0,0.00020821,2]
[339422425,1727603566107,-500.0,0.00020821,2]
[339422426,1727603566118,-500.0,0.00020821,2]
[339422427,1727603566130,-500.0,0.00020821,2]
[339422428,1727603566139,-600.51,0.00020821,2]
[339422429,1727603566151,-500.0,0.00020821,2]
[339422430,1727603566161,-1803.8,0.00020821,2]
[339422431,1727603566170,-500.0,0.00020821,2]
[339422432,1727603566180,-500.0,0.00020821,2]
[339422433,1727603566189,-500.0,0.00020821,2]
[339422434,1727603566199,-500.0,0.00020821,2]
[339422435,1727603566209,-500.0,0.00020821,2]
[339422436,1727603566219,-500.0,0.00020821,2]
[339422437,1727603566229,-504.63351748,0.00020821,2]
[339422438,1727603566239,-4201.32,0.00020821,2]
[339422439,1727603566248,-500.0,0.00020821,2]
[339422440,1727603566258,-500.0,0.00020821,2]
[339422441,1727603566268,-609.77407595,0.00020821,2]
[339422442,1727603566278,-500.0,0.00020821,2]
[339422443,1727603566288,-500.0,0.00020821,2]
[339422444,1727603566297,-500.0,0.00020821,2]
[339422445,1727603566306,-500.0,0.00020821,2]
[339422446,1727603566316,-500.0,0.00020821,2]
[339422447,1727603566326,-500.0,0.00020821,2]
[339422448,1727603566336,-500.0,0.00020821,2]
[339422449,1727603566346,-239.06680942,0.00020821,2]
[339422450,1727603566356,-656.12,0.00020821,2]
[339422451,1727603566366,-500.0,0.00020821,2]
[339422452,1727603566375,-500.0,0.00020821,2]
[339422453,1727603566384,-500.0,0.00020821,2]
[339422454,1727603566395,-500.0,0.00020821,2]
[339422455,1727603566405,-500.0,0.00020821,2]
[339422456,1727603566415,-162.6886458,0.00020821,2]
[339422457,1727603566425,-500.0,0.00020821,2]
[339422458,1727603566435,-845.95,0.00020821,2]
[339422459,1727603566445,-500.0,0.00020821,2]
[339422460,1727603566455,-530.7,0.00020821,2]
[339422461,1727603566466,-706.63,0.00020821,2]
[339422462,1727603566475,-944.6,0.00020821,2]
[339422463,1727603566485,-500.0,0.00020821,2]
[339422464,1727603566494,-822.81,0.00020821,2]
[339422465,1727603566504,-500.0,0.00020821,2]
[339422466,1727603566513,-500.0,0.00020821,2]
[339422467,1727603566523,-512.69,0.00020821,2]
[339422468,1727603566533,-500.0,0.00020821,2]
[339422469,1727603566542,-433.83462819,0.00020821,2]
[339422470,1727603566553,-740.56,0.00020821,2]
[339422471,1727603566562,-500.0,0.00020821,2]
[339422472,1727603566572,-2084.73,0.00020821,2]
[339422473,1727603566582,-500.0,0.00020821,2]
[339422474,1727603566592,-500.0,0.00020821,2]
[339422475,1727603566602,-500.0,0.00020821,2]
[339422476,1727603566612,-500.0,0.00020821,2]
[339422477,1727603566622,-500.0,0.00020821,2]
[339422478,1727603566632,-500.0,0.00020821,2]
[339422479,1727603566642,-373.90453056,0.00020821,2]
[339422480,1727603566652,-500.0,0.00020821,2]
[339422481,1727603566663,-632.66,0.00020821,2]
[339422482,1727603566672,-500.0,0.00020821,2]
[339422483,1727603566682,-500.0,0.00020821,2]
[339422484,1727603566691,-500.0,0.00020821,2]
[339422485,1727603566701,-500.0,0.00020821,2]
[339422486,1727603566711,-783.43,0.00020821,2]
[339422487,1727603566721,-500.0,0.00020821,2]
[339422488,1727603566731,-500.0,0.00020821,2]
[339422489,1727603566740,-500.0,0.00020821,2]
[339422490,1727603566750,-500.0,0.00020821,2]
[339422491,1727603566760,-500.0,0.00020821,2]
[339422492,1727603566770,-500.0,0.00020821,2]
[339422493,1727603566780,-1316.7,0.00020821,2]
[339422494,1727603566791,-1112.68,0.00020821,2]
[339422495,1727603566802,-370.40367318,0.00020821,2]
[339422496,1727603566811,-500.0,0.00020821,2]
[339422497,1727603566821,-707.65,0.00020821,2]
[339422498,1727603566830,-3579.33,0.00020821,2]
[339422499,1727603566840,-500.0,0.00020821,2]
[339422500,1727603566849,-188.45127115,0.00020821,2]
[339422501,1727603566858,-500.0,0.00020821,2]
[339422502,1727603566868,-2432.83,0.00020821,2]
[339422503,1727603566877,-611.98,0.00020821,2]
[339422504,1727603566886,-3092.55,0.00020821,2]
[339422505,1727603566895,-651.21,0.00020821,2]
[339422506,1727603566904,-500.0,0.00020821,2]
[339422507,1727603566914,-577.66463603,0.00020821,2]
[339422508,1727603566924,-500.0,0.00020821,2]
[339422509,1727603566934,-500.0,0.00020821,2]
[339422510,1727603566944,-647.34,0.00020821,2]
[339422511,1727603566954,-500.0,0.00020821,2]
[339422512,1727603566963,-500.0,0.00020821,2]
[339422513,1727603566974,-500.0,0.00020821,2]
[339422514,1727603566985,-3970.58,0.00020821,2]
[339422515,1727603566995,-500.0,0.00020821,2]
[339422516,1727603567005,-650.41,0.00020821,2]
[339422517,1727603567015,-500.0,0.00020821,2]
[339422518,1727603567025,-500.0,0.00020821,2]
[339422519,1727603567036,-500.0,0.00020821,2]
[339422520,1727603567046,-1454.84,0.00020821,2]
[339422521,1727603567057,-500.0,0.00020821,2]
[339422522,1727603567067,-500.0,0.00020821,2]
[339422523,1727603567077,-497.87090304,0.00020821,2]
[339422524,1727603567087,-500.0,0.00020821,2]
[339422525,1727603567098,-500.0,0.00020821,2]
[339422526,1727603567109,-500.0,0.00020821,2]
[339422527,1727603567121,-500.0,0.00020821,2]
[339422528,1727603567132,-500.0,0.00020821,2]
[339422529,1727603567142,-1060.87,0.00020821,2]
[339422530,1727603567153,-500.0,0.00020821,2]
[339422531,1727603567163,-1495.54,0.00020821,2]
[339422532,1727603567175,-500.0,0.00020821,2]
[339422533,1727603567184,-512.08446706,0.00020821,2]
[339422534,1727603567195,-500.0,0.00020821,2]
[339422535,1727603567206,-500.0,0.00020821,2]
[339422536,1727603567217,-500.0,0.00020821,2]
[339422537,1727603567228,-500.0,0.00020821,2]
[339422538,1727603567238,-500.0,0.00020821,2]
[339422539,1727603567250,-583.48,0.00020821,2]
[339422540,1727603567262,-842.65,0.00020821,2]
[339422541,1727603567274,-514.76,0.00020821,2]
[339422542,1727603567285,-3479.64,0.00020821,2]
[339422543,1727603567296,-500.0,0.00020821,2]
[339422544,1727603567306,-500.0,0.00020821,2]
[339422545,1727603567316,-500.0,0.00020821,2]
[339422546,1727603567326,-529.6,0.00020821,2]
[339422547,1727603567336,-686.77,0.00020821,2]
[339422548,1727603567347,-2401.28,0.00020821,2]
[339422549,1727603567359,-500.0,0.00020821,2]
[339422550,1727603567370,-500.0,0.00020821,2]
[339422551,1727603567382,-500.0,0.00020821,2]
[339422552,1727603567394,-915.47,0.00020821,2]
[339422553,1727603567407,-500.0,0.00020821,2]
[339422554,1727603567418,-500.0,0.00020821,2]
[339422555,1727603567430,-500.0,0.00020821,2]
[339422556,1727603567440,-500.0,0.00020821,2]
[339422557,1727603567452,-638.07,0.00020821,2]
[339422558,1727603567461,-500.0,0.00020821,2]
[339422559,1727603567471,-1941.22,0.00020821,2]
[339422560,1727603567482,-500.0,0.00020821,2]
[339422561,1727603567492,-500.0,0.00020821,2]
[339422562,1727603567503,-625.83,0.00020821,2]
[339422563,1727603567512,-595.87487604,0.00020821,2]
[339422564,1727603567523,-548.99,0.00020821,2]
[339422565,1727603567534,-500.0,0.00020821,2]
[339422566,1727603567544,-500.0,0.00020821,2]
[339422567,1727603567556,-500.0,0.00020821,2]
[339422568,1727603567568,-500.0,0.00020821,2]
[339422569,1727603567579,-716.25,0.00020821,2]
[339422570,1727603567589,-500.0,0.00020821,2]
[339422571,1727603567600,-500.0,0.00020821,2]
[339422572,1727603567611,-500.0,0.00020821,2]
[339422573,1727603567621,-500.0,0.00020821,2]
[339422574,1727603567632,-3393.93160453,0.00020821,7]
[339422575,1727603567643,-1617.50508181,0.00020956,2]
[339422576,1727603567655,-1000.0,0.00021,21]
[339422577,1727603567665,-259.82449678,0.00021,2]
[339422578,1727603567675,-10198.76477585,0.00021,2]
[339422579,1727603567687,-234.15330491,0.00021,2]
[339422580,1727603567697,-250.0,0.00021,10]
[339422581,1727603567708,-500.60140037,0.00021,30]
[339422582,1727603567719,-517.66195188,0.00021,30]
[339422583,1727603567729,-3000.0,0.00021,2]
[339422584,1727603567739,-3000.0,0.0002101,2]
[339422585,1727603567749,-3000.0,0.0002102,2]
[339422586,1727603567760,-3000.0,0.0002103,2]
[339422587,1727603567771,-3000.0,0.0002104,2]
[339422588,1727603567783,-3000.0,0.0002105,2]
[339422589,1727603567799,-3000.0,0.0002106,2]
[339422590,1727603567810,-3000.0,0.0002107,2]
[339422591,1727603567822,-3000.0,0.0002108,2]
[339422592,1727603567831,-3000.0,0.0002109,2]
[339422593,1727603567840,-500.0,0.00021095,2]
[339422594,1727603567850,-500.0,0.00021095,2]
[339422595,1727603567859,-505.84603113,0.00021095,2]
[339422596,1727603567868,-500.0,0.00021095,2]
[339422597,1727603567878,-500.0,0.00021095,2]
[339422598,1727603567890,-765.39,0.00021095,2]
[339422599,1727603567900,-528.12,0.00021095,2]
[339422600,1727603567910,-500.0,0.00021095,2]
[339422601,1727603567920,-500.0,0.00021095,2]
[339422602,1727603567932,-500.0,0.00021095,2]
[339422603,1727603567943,-548.6,0.00021095,2]
[339422604,1727603567953,-500.0,0.00021095,2]
[339422605,1727603567964,-500.0,0.00021095,2]
[339422606,1727603567974,-500.0,0.00021095,2]
[339422607,1727603567984,-500.0,0.00021095,2]
[339422608,1727603567995,-937.7,0.00021095,2]
[339422609,1727603568005,-500.0,0.00021095,2]
[339422610,1727603568015,-500.0,0.00021095,2]
[339422611,1727603568027,-639.7,0.00021095,2]
[339422612,1727603568037,-500.0,0.00021095,2]
[339422613,1727603568048,-702.44,0.00021095,2]
[339422614,1727603568059,-500.0,0.00021095,2]
[339422615,1727603568070,-500.0,0.00021095,2]
[339422616,1727603568081,-500.0,0.00021095,2]
[339422617,1727603568091,-500.0,0.00021095,2]
[339422618,1727603568100,-500.0,0.00021095,2]
[339422619,1727603568111,-500.0,0.00021095,2]
[339422620,1727603568121,-500.0,0.00021095,2]
[339422621,1727603568131,-585.31,0.00021095,2]
[339422622,1727603568140,-500.0,0.00021095,2]
[339422623,1727603568150,-688.0,0.00021095,2]
[339422624,1727603568161,-500.0,0.00021095,2]
[339422625,1727603568174,-712.25,0.00021095,2]
[339422626,1727603568183,-500.0,0.00021095,2]
[339422627,1727603568193,-500.0,0.00021095,2]
[339422628,1727603568204,-500.0,0.00021095,2]
[339422629,1727603568214,-500.0,0.00021095,2]
[339422630,1727603568224,-500.0,0.00021095,2]
[339422631,1727603568235,-500.0,0.00021095,2]
[339422632,1727603568244,-559.65,0.00021095,2]
[339422633,1727603568254,-500.0,0.00021095,2]
[339422634,1727603568264,-500.0,0.00021095,2]
[339422635,1727603568273,-500.0,0.00021095,2]
[339422636,1727603568284,-500.0,0.00021095,2]
[339422637,1727603568296,-500.0,0.00021095,2]
[339422638,1727603568305,-500.0,0.00021095,2]
[339422639,1727603568315,-500.0,0.00021095,2]
[339422640,1727603568326,-500.0,0.00021095,2]